fUST/lending_fUST_20250929
["ID","MTS","AMOUNT","RATE_DAILY","PERIOD"]
[388391147,1759151440278,-480.0,0.00025569,2]
[388391149,1759151440290,-480.0,0.00025569,2]
[388391151,1759151440300,-480.0,0.00025569,2]
[388391153,1759151440310,-480.0,0.00025569,2]
[388391156,1759151440320,-710.28,0.00025569,2]
[388391158,1759151440330,-480.0,0.00025569,2]
[388391160,1759151440340,-658.42,0.00025569,2]
[388391162,1759151440350,-500.0,0.00025569,2]
[388391164,1759151440360,-480.0,0.00025569,2]
[388391166,1759151440369,-480.0,0.00025569,2]
[388391168,1759151440379,-480.0,0.00025569,2]
[388391169,1759151440390,-480.0,0.00025569,2]
[388391171,1759151440400,-1971.78,0.00025569,2]
[388391173,1759151440410,-480.0,0.00025569,2]
[388391175,1759151440420,-480.0,0.00025569,2]
[388391177,1759151440430,-710.27,0.00025569,2]
[388391179,1759151440440,-786.56,0.00025569,2]
[388391181,1759151440451,-866.3,0.00025569,2]
[388391182,1759151440461,-1402.13,0.00025569,2]
[388391184,1759151440471,-1424.27,0.00025569,2]
[388391186,1759151440482,-655.46,0.00025569,2]
[388391189,1759151440492,-655.46,0.00025569,2]
[388391190,1759151440502,-655.46,0.00025569,2]
[388391192,1759151440512,-655.46,0.00025569,2]
[388391194,1759151440522,-655.46,0.00025569,2]
[388391196,1759151440533,-655.46,0.00025569,2]
[388391198,1759151440543,-655.46,0.00025569,2]
[388391200,1759151440553,-655.46,0.00025569,2]
[388391202,1759151440563,-655.46,0.00025569,2]
[388391204,1759151440572,-655.46,0.00025569,2]
[388391206,1759151440582,-655.46,0.00025569,2]
[388391208,1759151440593,-655.46,0.00025569,2]
[388391210,1759151440603,-655.46,0.00025569,2]
[388391212,1759151440613,-655.46,0.00025569,2]
[388391214,1759151440623,-655.46,0.00025569,2]
[388391216,1759151440633,-655.46,0.00025569,2]
[388391218,1759151440643,-655.46,0.00025569,2]
[388391220,1759151440654,-655.46,0.00025569,2]
[388391222,1759151440665,-655.46,0.00025569,2]
[388391224,1759151440676,-480.0,0.00025569,2]
[388391226,1759151440686,-480.0,0.00025569,2]
[388391228,1759151440695,-423.46784794,0.00025569,2]
[388391229,1759151440705,-1417.08,0.00025569,2]
[388391231,1759151440715,-739.41,0.00025569,2]
[388391233,1759151440725,-507.22,0.00025569,2]
[388391235,1759151440735,-685.49,0.00025569,2]
[388391237,1759151440744,-734.96,0.00025569,2]
[388391239,1759151440754,-534.19,0.00025569,2]
[388391241,1759151440764,-1816.34,0.00025569,2]
[388391243,1759151440775,-793.97,0.00025569,2]
[388391245,1759151440785,-506.1,0.00025569,2]
[388391246,1759151440795,-480.0,0.00025569,2]
[388391248,1759151440805,-480.0,0.00025569,2]
[388391250,1759151440815,-480.0,0.00025569,2]
[388391252,1759151440825,-512.03,0.00025569,2]
[388391254,1759151440834,-480.0,0.00025569,2]
[388391256,1759151440844,-658.26,0.00025569,2]
[388391258,1759151440854,-480.0,0.00025569,2]
[388391260,1759151440864,-480.0,0.00025569,2]
[388391262,1759151440874,-480.0,0.00025569,2]
[388391264,1759151440883,-592.48,0.00025569,2]
[388391266,1759151440893,-777.84,0.00025569,2]
[388391268,1759151440903,-781.3,0.00025569,2]
[388391270,1759151440914,-480.0,0.00025569,2]
[388391272,1759151440924,-863.34,0.00025569,2]
[388391273,1759151440933,-831.67,0.00025569,2]
[388391275,1759151440944,-480.0,0.00025569,2]
[388391277,1759151440954,-480.0,0.00025569,2]
[388391279,1759151440964,-480.0,0.00025569,2]
[388391281,1759151440974,-760.03,0.00025569,2]
[388391283,1759151440984,-480.0,0.00025569,2]
[388391285,1759151440994,-480.0,0.00025569,2]
[388391287,1759151441006,-480.0,0.00025569,2]
[388391289,1759151441016,-1102.27,0.00025569,2]
[388391291,1759151441025,-521.07,0.00025569,2]
[388391293,1759151441035,-480.0,0.00025569,2]
[388391295,1759151441044,-936.34,0.00025569,2]
[388391297,1759151441053,-480.0,0.00025569,2]
[388391298,1759151441063,-480.0,0.00025569,2]
[388391300,1759151441073,-480.0,0.00025569,2]
[388391302,1759151441082,-480.0,0.00025569,2]
[388391304,1759151441092,-800.91,0.00025569,2]
[388391306,1759151441101,-480.0,0.00025569,2]
[388391308,1759151441111,-480.0,0.00025569,2]
[388391310,1759151441121,-380.0,0.00025569,2]
[388391313,1759151441139,-480.0,0.00025569,2]
[388391315,1759151441148,-480.0,0.00025569,2]
[388391316,1759151441158,-480.0,0.00025569,2]
[388391318,1759151441169,-932.59,0.00025569,2]
[388391320,1759151441181,-480.0,0.00025569,2]
[388391322,1759151441192,-481.7384302,0.00025569,2]
[388391324,1759151441203,-480.0,0.00025569,2]
[388391326,1759151441213,-484.91925,0.00025569,2]
[388391349,1759151441444,-480.0,0.00025569,2]
[388391351,1759151441454,-1182.72,0.00025569,2]
[388391353,1759151441464,-574.95,0.00025569,2]
[388391355,1759151441473,-480.0,0.00025569,2]
[388391357,1759151441483,-1027.85,0.00025569,2]
[388391359,1759151441492,-480.0,0.00025569,2]
[388391361,1759151441503,-480.0,0.00025569,2]
[388391363,1759151441512,-1501.78,0.00025569,2]
[388391365,1759151441522,-691.64,0.00025569,2]
[388391367,1759151441531,-480.0,0.00025569,2]
[388391369,1759151441540,-912.82,0.00025569,2]
[388391370,1759151441549,-513.02,0.00025569,2]
[388391372,1759151441559,-480.0,0.00025569,2]
[388391374,1759151441568,-535.63,0.00025569,2]
[388391376,1759151441578,-1176.56,0.00025569,2]
[388391378,1759151441587,-480.0,0.00025569,2]
[388391380,1759151441597,-480.0,0.00025569,2]
[388391382,1759151441608,-481.54375347,0.00025569,2]
[388391384,1759151441618,-219.78802183,0.00025569,2]
[388391386,1759151441628,-885.72,0.00025569,2]
[388391388,1759151441637,-480.0,0.00025569,2]
[388391390,1759151441646,-480.0,0.00025569,2]
[388391392,1759151441656,-480.0,0.00025569,2]
[388391394,1759151441665,-480.0,0.00025569,2]
[388391396,1759151441675,-480.0,0.00025569,2]
[388391397,1759151441685,-480.45485604,0.00025569,2]
[388391399,1759151441695,-480.0,0.00025569,2]
[388391401,1759151441704,-480.0,0.00025569,2]
[388391403,1759151441714,-480.0,0.00025569,2]
[388391405,1759151441723,-482.769942,0.00025569,2]
[388391407,1759151441732,-795.67,0.00025569,2]
[388391409,1759151441742,-480.0,0.00025569,2]
[388391411,1759151441751,-480.0,0.00025569,2]
[388391413,1759151441760,-480.0,0.00025569,2]
[388391415,1759151441769,-14103.58,0.00025569,2]
[388391417,1759151441779,-480.0,0.00025569,2]
[388391419,1759151441788,-689.6,0.00025569,2]
[388391421,1759151441797,-480.0,0.00025569,2]
[388391423,1759151441807,-480.0,0.00025569,2]
[388391424,1759151441816,-480.0,0.00025569,2]
[388391426,1759151441825,-480.0,0.00025569,2]
[388391428,1759151441835,-3544.99,0.00025569,2]
[388391430,1759151441844,-480.0,0.00025569,2]
[388391432,1759151441856,-480.0,0.00025569,2]
[388391434,1759151441866,-480.0,0.00025569,2]
[388391436,1759151441875,-480.0,0.00025569,2]
[388391438,1759151441885,-4793.73,0.00025569,2]
[388391440,1759151441895,-480.0,0.00025569,2]
[388391442,1759151441904,-540.49,0.00025569,2]
[388391444,1759151441915,-1069.16,0.00025569,2]
[388391446,1759151441924,-777.01,0.00025569,2]
[388391448,1759151441934,-480.0,0.00025569,2]
[388391450,1759151441943,-481.56382778,0.00025569,2]
[388391452,1759151441953,-413.35317121,0.00025569,2]
[388391454,1759151441962,-480.0,0.00025569,2]
[388391456,1759151441971,-480.0,0.00025569,2]
[388391458,1759151441980,-480.0,0.00025569,2]
[388391459,1759151441990,-480.0,0.00025569,2]
[388391461,1759151442001,-480.0,0.00025569,2]
[388391463,1759151442010,-480.0,0.00025569,2]
[388391465,1759151442020,-750.45,0.00025569,2]
[388391467,1759151442030,-1063.15,0.00025569,2]
[388391469,1759151442039,-480.0,0.00025569,2]
[388391471,1759151442048,-480.0,0.00025569,2]
[388391473,1759151442058,-480.0,0.00025569,2]
[388391475,1759151442067,-480.0,0.00025569,2]
[388391476,1759151442076,-704.69,0.00025569,2]
[388391478,1759151442085,-480.0,0.00025569,2]
[388391480,1759151442094,-1475.13,0.00025569,2]
[388391482,1759151442103,-480.0,0.00025569,2]
[388391484,1759151442115,-480.0,0.00025569,2]
[388391486,1759151442125,-480.0,0.00025569,2]
[388391487,1759151442136,-480.0,0.00025569,2]
[388391489,1759151442146,-1460.07,0.00025569,2]
[388391491,1759151442156,-838.94,0.00025569,2]
[388391493,1759151442167,-3204.37,0.00025569,2]
[388391495,1759151442176,-481.35,0.00025569,2]
[388391497,1759151442186,-480.0,0.00025569,2]
[388391499,1759151442195,-480.0,0.00025569,2]
[388391501,1759151442206,-480.0,0.00025569,2]
[388391503,1759151442217,-1708.43,0.00025569,2]
[388391505,1759151442226,-480.0,0.00025569,2]
[388391507,1759151442235,-482.91406733,0.00025569,2]
[388391509,1759151442245,-518.01,0.00025569,2]
[388391511,1759151442255,-480.0,0.00025569,2]
[388391513,1759151442265,-803.9,0.00025569,2]
[388391515,1759151442274,-480.0,0.00025569,2]
[388391517,1759151442284,-2495.47,0.00025569,2]
[388391518,1759151442294,-1052.7,0.00025569,2]
[388391520,1759151442304,-480.0,0.00025569,2]
[388391522,1759151442313,-480.0,0.00025569,2]
[388391524,1759151442322,-480.0,0.00025569,2]
[388391526,1759151442331,-3092.91,0.00025569,2]
[388391528,1759151442340,-1565.64,0.00025569,2]
[388391530,1759151442348,-480.0,0.00025569,2]
[388391532,1759151442357,-514.44,0.00025569,2]
[388391534,1759151442366,-480.0,0.00025569,2]
[388391535,1759151442375,-481.01703753,0.00025569,2]
[388391537,1759151442384,-480.0,0.00025569,2]
[388391539,1759151442394,-824.16,0.00025569,2]
[388391540,1759151442404,-453.39304695,0.00025569,2]
[388391541,1759151442414,-1367.96,0.00025569,2]
[388391542,1759151442423,-480.0,0.00025569,2]
[388391543,1759151442432,-480.0,0.00025569,2]
[388391544,1759151442441,-480.0,0.00025569,2]
[388391545,1759151442451,-1725.36,0.00025569,2]
[388391546,1759151442460,-177.83949429,0.00025569,2]
[388391547,1759151442470,-689.28,0.00025569,2]
[388391548,1759151442479,-504.81,0.00025569,2]
[388391549,1759151442488,-480.0,0.00025569,2]
[388391550,1759151442498,-3371.25,0.00025569,2]
[388391551,1759151442506,-480.0,0.00025569,2]
[388391552,1759151442517,-480.0,0.00025569,2]
[388391553,1759151442526,-480.0,0.00025569,2]
[388391554,1759151442535,-480.0,0.00025569,2]
[388391555,1759151442545,-7531.81,0.00025569,2]
[388391556,1759151442555,-480.0,0.00025569,2]
[388391557,1759151442564,-909.16,0.00025569,2]
[388391558,1759151442574,-844.28,0.00025569,2]
[388391559,1759151442583,-890.13,0.00025569,2]
[388391560,1759151442592,-480.0,0.00025569,2]
[388391561,1759151442601,-480.0,0.00025569,2]
[388391562,1759151442611,-1044.77,0.00025569,2]
[388391563,1759151442620,-480.0,0.00025569,2]
[388391564,1759151442629,-480.0,0.00025569,2]
[388391565,1759151442638,-677.82,0.00025569,2]
[388391566,1759151442647,-1117.33,0.00025569,2]
[388391568,1759151442656,-480.0,0.00025569,2]
[388391569,1759151442666,-3496.53,0.00025569,2]
[388391570,1759151442675,-480.0,0.00025569,2]
[388391571,1759151442684,-151.0,0.00025569,2]
[388391572,1759151442694,-973.3,0.00025569,2]
[388391573,1759151442703,-546.0,0.00025569,2]
[388391574,1759151442713,-151.0,0.00025569,7]
[388391575,1759151442722,-480.0,0.00025569,2]
[388391576,1759151442732,-480.0,0.00025569,2]
[388391577,1759151442741,-151.0,0.00025569,7]
[388391578,1759151442751,-228.570475,0.00025569,7]
[388391580,1759151442760,-480.0,0.00025569,2]
[388391581,1759151442772,-572.94,0.00025569,2]
[388391583,1759151442782,-1801.63,0.00025569,2]
[388391584,1759151442792,-480.0,0.00025569,2]
[388391585,1759151442801,-151.0,0.00025569,7]
[388391587,1759151442809,-977.69,0.00025569,2]
[388391588,1759151442819,-151.0,0.00025569,7]
[388391589,1759151442829,-480.0,0.00025569,2]
[388391590,1759151442839,-480.0,0.00025569,2]
[388391591,1759151442849,-1049.32,0.00025569,2]
[388391592,1759151442859,-480.0,0.00025569,2]
[388391593,1759151442869,-480.0,0.00025569,2]
[388391595,1759151442882,-480.0,0.00025569,2]
[388391596,1759151442891,-805.75,0.00025569,2]
[388391598,1759151442900,-480.0,0.00025569,2]
[388391599,1759151442910,-480.0,0.00025569,2]
[388391600,1759151442919,-7854.75,0.00025569,2]
[388391601,1759151442929,-151.0,0.00025569,7]
[388391602,1759151442939,-480.0,0.00025569,2]
[388391603,1759151442948,-151.0,0.00025569,7]
[388391604,1759151442958,-2026.373521,0.00025569,7]
[388391605,1759151442967,-151.0,0.00025569,7]
[388391606,1759151442977,-2026.373521,0.00025569,7]
[388391607,1759151442986,-669.95,0.00025569,2]
[388391609,1759151442995,-2026.373521,0.00025569,7]
[388391611,1759151443005,-2026.373521,0.00025569,7]
[388391612,1759151443015,-1494.42,0.00025569,2]
[388391614,1759151443025,-480.0,0.00025569,2]
[388391616,1759151443034,-200.0,0.00025569,2]
[388391618,1759151443043,-480.0,0.00025569,2]
[388391619,1759151443053,-545.1,0.00025569,2]
[388391620,1759151443062,-480.0,0.00025569,2]
[388391622,1759151443071,-480.0,0.00025569,2]
[388391623,1759151443081,-480.0,0.00025569,2]
[388391624,1759151443090,-4139.78,0.00025569,2]
[388391625,1759151443100,-151.0,0.00025569,7]
[388391626,1759151443109,-480.0,0.00025569,2]
[388391627,1759151443119,-152.028106,0.00025569,7]
[388391628,1759151443131,-717.97,0.00025569,2]
[388391629,1759151443141,-238.36401353,0.00025569,2]
[388391630,1759151443151,-151.0,0.00025569,7]
[388391632,1759151443161,-151.0,0.00025569,7]
[388391634,1759151443171,-195.121314,0.00025569,7]
[388391635,1759151443181,-480.0,0.00025569,2]
[388391636,1759151443190,-480.0,0.00025569,2]
[388391637,1759151443200,-161.24248463,0.00025569,2]
[388391638,1759151443211,-397.533135,0.0002557,7]
[388391640,1759151443221,-397.533135,0.0002557,7]
[388391641,1759151443231,-397.533135,0.0002557,7]
[388391642,1759151443240,-151.0,0.0002557,7]
[388391643,1759151443249,-152.88975,0.0002557,7]
[388391644,1759151443259,-151.0,0.0002557,7]
[388391645,1759151443270,-397.533135,0.0002557,7]
[388391646,1759151443279,-171.962948,0.0002557,7]
[388391647,1759151443289,-171.962948,0.0002557,7]
[388391648,1759151443298,-151.0,0.0002557,7]
[388391649,1759151443307,-171.962948,0.0002557,7]
[388391650,1759151443317,-151.0,0.0002557,7]
[388391651,1759151443327,-171.962948,0.0002557,7]
[388391652,1759151443336,-151.0,0.0002557,7]
[388391653,1759151443346,-269.118665,0.0002557,7]
[388391654,1759151443355,-151.0,0.0002557,7]
[388391655,1759151443365,-151.0,0.0002557,7]
[388391656,1759151443375,-3698.854506,0.0002557,7]
[388391657,1759151443384,-3698.854506,0.0002557,7]
[388391658,1759151443393,-151.0,0.0002557,7]
[388391659,1759151443401,-151.0,0.0002557,7]
[388391660,1759151443410,-3698.854506,0.0002557,7]
[388391661,1759151443418,-168.764124,0.0002557,7]
[388391662,1759151443427,-3698.854506,0.0002557,7]
[388391663,1759151443435,-153.432896,0.0002557,7]
[388391664,1759151443444,-151.0,0.0002557,7]
[388391665,1759151443452,-151.0,0.0002557,7]
[388391666,1759151443461,-151.0,0.0002557,7]
[388391667,1759151443470,-151.0,0.0002557,7]
[388391668,1759151443479,-153.516813,0.0002557,7]
[388391669,1759151443487,-151.0,0.0002557,7]
[388391670,1759151443495,-152.135678,0.0002557,7]
[388391671,1759151443504,-178.43379,0.0002557,7]
[388391672,1759151443512,-178.43379,0.0002557,7]
[388391673,1759151443522,-178.43379,0.0002557,7]
[388391674,1759151443531,-9067.409052,0.0002557,7]
[388391675,1759151443539,-178.43379,0.0002557,7]
[388391676,1759151443547,-9067.409052,0.0002557,7]
[388391677,1759151443556,-9067.409052,0.0002557,7]
[388391678,1759151443565,-151.0,0.0002557,7]
[388391679,1759151443574,-151.0,0.0002557,7]
[388391680,1759151443583,-151.0,0.0002557,7]
[388391681,1759151443592,-9067.409052,0.0002557,7]
[388391682,1759151443601,-151.0,0.0002557,7]
[388391683,1759151443611,-435.146452,0.0002557,7]
[388391684,1759151443620,-435.146452,0.0002557,7]
[388391685,1759151443629,-151.0,0.0002557,7]
[388391686,1759151443638,-435.146452,0.0002557,7]
[388391687,1759151443648,-151.0,0.0002557,7]
[388391688,1759151443658,-435.146452,0.0002557,7]
[388391689,1759151443667,-151.0,0.0002557,7]
[388391690,1759151443676,-151.0,0.0002557,7]
[388391691,1759151443686,-151.0,0.0002557,7]
[388391692,1759151443696,-151.0,0.0002557,7]
[388391693,1759151443705,-732.441812,0.0002557,7]
[388391694,1759151443714,-732.441812,0.0002557,7]
[388391695,1759151443724,-732.441812,0.0002557,7]
[388391696,1759151443733,-732.441812,0.0002557,7]
[388391697,1759151443743,-151.0,0.0002557,7]
[388391698,1759151443752,-151.0,0.0002557,7]
[388391699,1759151443762,-151.0,0.0002557,7]
[388391700,1759151443773,-265.273057,0.0002557,7]
[388391701,1759151443782,-151.0,0.0002557,7]
[388391702,1759151443791,-287.05244738,0.0002557,2]
[388391703,1759151443801,-151.0,0.0002557,7]
[388391704,1759151443810,-151.0,0.0002557,7]
[388391705,1759151443819,-151.0,0.0002557,7]
[388391706,1759151443829,-151.0,0.0002557,7]
[388391707,1759151443839,-151.0,0.0002557,7]
[388391708,1759151443849,-2026.373521,0.0002557,7]
[388391709,1759151443858,-151.0,0.0002557,7]
[388391710,1759151443868,-2026.373521,0.0002557,7]
[388391711,1759151443877,-2026.373521,0.0002557,7]
[388391712,1759151443886,-2026.373521,0.0002557,7]
[388391713,1759151443896,-151.0,0.0002557,7]
[388391714,1759151443905,-151.0,0.0002557,7]
[388391715,1759151443915,-370000.0,0.0002557,2]
[388391716,1759151443924,-500.0,0.0002557,5]
[388391717,1759151443937,-500.0,0.00025573,2]
[388391718,1759151443946,-500.0,0.00025573,2]
[388391719,1759151443956,-500.0,0.00025573,2]
[388391720,1759151443965,-572.08826976,0.00025573,2]
[388391721,1759151443974,-500.0,0.00025573,2]
[388391722,1759151443984,-500.0,0.00025573,2]
[388391723,1759151443994,-500.0,0.00025573,2]
[388391724,1759151444003,-500.0,0.00025573,2]
[388391725,1759151444014,-500.0,0.00025573,2]
[388391726,1759151444025,-302.09022483,0.00025573,2]
[388391727,1759151444036,-481.93362647,0.00025573,2]
[388391728,1759151444045,-340.99905216,0.00025573,2]
[388391729,1759151444056,-500.0,0.00025573,2]
[388391730,1759151444066,-500.0,0.00025573,2]
[388391731,1759151444075,-500.0,0.00025573,2]
[388391732,1759151444086,-500.0,0.00025573,2]
[388391733,1759151444095,-500.0,0.00025573,2]
[388391734,1759151444104,-501.63903233,0.00025573,2]
[388391735,1759151444114,-500.0,0.00025573,2]
[388391736,1759151444126,-618.66300987,0.00025573,2]
[388391737,1759151444138,-500.0,0.00025573,2]
[388391738,1759151444147,-500.0,0.00025573,2]
[388391739,1759151444156,-500.0,0.00025573,2]
[388391740,1759151444165,-530.19311456,0.00025573,2]
[388391741,1759151444176,-500.0,0.00025573,2]
[388391742,1759151444185,-500.0,0.00025573,2]
[388391743,1759151444195,-500.0,0.00025573,2]
[388391744,1759151444206,-500.0,0.00025573,2]
[388391745,1759151444215,-500.0,0.00025573,2]
[388391746,1759151444225,-151.0,0.000256,11]
[388391747,1759151444389,-151.0,0.000256,20]
[388391748,1759151444399,-151.0,0.000256,17]
[388391749,1759151444410,-151.0,0.000256,13]
[388391750,1759151444420,-151.0,0.000256,16]
[388391751,1759151444431,-151.0,0.000256,10]
[388391752,1759151444441,-151.0,0.000256,12]
[388391753,1759151444451,-10690.66172303,0.00025656,2]
[388391754,1759151444462,-9027.58716574,0.00025657,2]
[388391755,1759151444473,-9027.58716574,0.00025658,2]
[388391756,1759151444482,-9027.58716574,0.00025659,2]
[388391757,1759151444491,-480.0,0.00025667,2]
[388391758,1759151444503,-480.0,0.00025667,2]
[388391759,1759151444514,-480.0,0.00025667,2]
[388391760,1759151444524,-773.39,0.00025667,2]
[388391761,1759151444534,-480.0,0.00025667,2]
[388391762,1759151444544,-480.0,0.00025667,2]
[388391763,1759151444554,-480.0,0.00025667,2]
[388391764,1759151444564,-480.0,0.00025667,2]
[388391765,1759151444573,-480.0,0.00025667,2]
[388391766,1759151444583,-789.49,0.00025667,2]
[388391767,1759151444592,-402.44722605,0.00025667,2]
[388391768,1759151444602,-579.82,0.00025667,2]
[388391769,1759151444611,-484.01351364,0.00025667,2]
[388391770,1759151444620,-480.0,0.00025667,2]
[388391771,1759151444629,-480.0,0.00025667,2]
[388391772,1759151444639,-480.0,0.00025667,2]
[388391773,1759151444649,-622.65,0.00025667,2]
[388391774,1759151444659,-480.0,0.00025667,2]
[388391775,1759151444670,-682.22,0.00025667,2]
[388391776,1759151444680,-480.0,0.00025667,2]
[388391777,1759151444690,-480.0,0.00025667,2]
[388391778,1759151444700,-480.0,0.00025667,2]
[388391779,1759151444710,-731.15,0.00025667,2]
[388391780,1759151444720,-480.0,0.00025667,2]
[388391781,1759151444729,-480.0,0.00025667,2]
[388391782,1759151444739,-480.0,0.00025667,2]
[388391783,1759151444749,-480.0,0.00025667,2]
[388391784,1759151444759,-480.0,0.00025667,2]
[388391785,1759151444772,-655.46,0.00025667,2]
[388391786,1759151444781,-655.46,0.00025667,2]
[388391787,1759151444791,-655.46,0.00025667,2]
[388391788,1759151444801,-655.46,0.00025667,2]
[388391789,1759151444811,-655.59083042,0.00025667,2]
[388391790,1759151444822,-151.0,0.00025667,7]
[388391791,1759151444832,-151.0,0.00025667,7]
[388391792,1759151444843,-151.0,0.00025667,7]
[388391793,1759151444852,-151.0,0.00025667,7]
[388391794,1759151444862,-151.0,0.00025667,7]
[388391795,1759151444872,-203.44813,0.00025667,7]
[388391796,1759151444884,-151.0,0.00025667,7]
[388391797,1759151444894,-151.0,0.00025667,7]
[388391798,1759151444904,-151.0,0.00025667,7]
[388391799,1759151444913,-536.89,0.00025667,2]
[388391800,1759151444923,-151.0,0.00025667,7]
[388391801,1759151444932,-176.81398,0.00025667,7]
[388391802,1759151444942,-176.81398,0.00025667,7]
[388391803,1759151444951,-176.81398,0.00025667,7]
[388391804,1759151444960,-176.81398,0.00025667,7]
[388391805,1759151444969,-6978.62,0.00025667,2]
[388391806,1759151444979,-151.0,0.00025667,7]
[388391807,1759151444989,-151.0,0.00025667,7]
[388391808,1759151444998,-188.044588,0.00025667,7]
[388391809,1759151445008,-267.626462,0.00025667,7]
[388391810,1759151445018,-267.626462,0.00025667,7]
[388391811,1759151445027,-267.626462,0.00025667,7]
[388391812,1759151445037,-267.626462,0.00025667,7]
[388391813,1759151445047,-188.044588,0.00025667,7]
[388391814,1759151445056,-188.044588,0.00025667,7]
[388391815,1759151445066,-1944.22,0.00025667,2]
[388391816,1759151445075,-188.044588,0.00025667,7]
[388391817,1759151445084,-151.0,0.00025667,7]
[388391818,1759151445094,-397.533135,0.00025667,7]
[388391819,1759151445104,-397.533135,0.00025667,7]
[388391820,1759151445113,-397.533135,0.00025667,7]
[388391821,1759151445123,-257.46095742,0.00025667,2]
[388391822,1759151445137,-480.0,0.00025667,2]
[388391823,1759151445146,-151.0,0.00025667,7]
[388391824,1759151445155,-153.914599,0.00025667,7]
[388391825,1759151445164,-397.533135,0.00025667,7]
[388391826,1759151445175,-171.962948,0.00025667,7]
[388391827,1759151445184,-171.962948,0.00025667,7]
[388391828,1759151445193,-151.0,0.00025667,7]
[388391829,1759151445203,-171.962948,0.00025667,7]
[388391830,1759151445212,-151.0,0.00025667,7]
[388391831,1759151445222,-171.962948,0.00025667,7]
[388391832,1759151445231,-151.0,0.00025667,7]
[388391833,1759151445240,-151.0,0.00025667,7]
[388391834,1759151445250,-151.0,0.00025667,7]
[388391835,1759151445259,-3698.854506,0.00025667,7]
[388391836,1759151445268,-3698.854506,0.00025667,7]
[388391837,1759151445278,-151.0,0.00025667,7]
[388391838,1759151445287,-151.0,0.00025667,7]
[388391839,1759151445296,-3698.854506,0.00025667,7]
[388391840,1759151445305,-3698.854506,0.00025667,7]
[388391841,1759151445315,-151.0,0.00025667,7]
[388391842,1759151445324,-151.0,0.00025667,7]
[388391843,1759151445334,-151.0,0.00025667,7]
[388391844,1759151445343,-151.0,0.00025667,7]
[388391845,1759151445352,-151.0,0.00025667,7]
[388391846,1759151445362,-178.43379,0.00025667,7]
[388391847,1759151445371,-178.43379,0.00025667,7]
[388391848,1759151445380,-178.43379,0.00025667,7]
[388391849,1759151445389,-9067.409052,0.00025667,7]
[388391850,1759151445399,-178.43379,0.00025667,7]
[388391851,1759151445408,-9067.409052,0.00025667,7]
[388391852,1759151445417,-151.0,0.00025667,7]
[388391853,1759151445427,-9067.409052,0.00025667,7]
[388391854,1759151445436,-285.185949,0.00025667,7]
[388391855,1759151445447,-151.0,0.00025667,7]
[388391856,1759151445456,-9067.409052,0.00025667,7]
[388391857,1759151445466,-152.127292,0.00025667,7]
[388391858,1759151445475,-435.146452,0.00025667,7]
[388391859,1759151445484,-435.146452,0.00025667,7]
[388391860,1759151445493,-151.0,0.00025667,7]
[388391861,1759151445503,-435.146452,0.00025667,7]